[Event "*** Titled Tuesday Blitz"]
[Site "Chess.com"]
[Date "2018.06.05"]
[Round "5"]
[White "ulises2013"]
[Black "GM_Huschenbeth"]
[Result "1-0"]
[WhiteElo "2416"]
[BlackElo "2434"]
[TimeControl "180+2"]
[EndTime "14:13:36 PDT"]
[Termination "ulises2013 won by resignation"]

1. e4 {[%clk 0:03:01.9]} 1... c5 {[%clk 0:03:00.8]} 2. g3 {[%clk 0:03:02.8]}
2... d6 {[%clk 0:03:02.7]} 3. Bg2 {[%clk 0:03:03.8]} 3... Nc6 {[%clk 0:03:00.9]}
4. Ne2 {[%clk 0:03:05.3]} 4... g6 {[%clk 0:03:02.3]} 5. O-O {[%clk 0:03:06.7]}
5... Bg7 {[%clk 0:03:03.8]} 6. c3 {[%clk 0:03:08.2]} 6... e5 {[%clk 0:03:04.7]}
7. d3 {[%clk 0:03:09.5]} 7... Nge7 {[%clk 0:03:05.9]} 8. Be3 {[%clk 0:03:11]}
8... O-O {[%clk 0:03:07.3]} 9. d4 {[%clk 0:03:12.4]} 9... f5 {[%clk 0:03:04.6]}
10. dxc5 {[%clk 0:03:11.4]} 10... f4 {[%clk 0:02:33.4]} 11. gxf4 {[%clk
0:03:11.3]} 11... exf4 {[%clk 0:02:34.9]} 12. Nxf4 {[%clk 0:03:10.4]} 12... dxc5
{[%clk 0:02:35.9]} 13. Qxd8 {[%clk 0:03:09.7]} 13... Nxd8 {[%clk 0:02:37]} 14.
Bxc5 {[%clk 0:03:03.1]} 14... Rxf4 {[%clk 0:02:37.3]} 15. Bxe7 {[%clk
0:03:03.1]} 15... Ne6 {[%clk 0:02:26.3]} 16. Na3 {[%clk 0:02:57.1]} 16... Rf7
{[%clk 0:02:24.3]} 17. Bd6 {[%clk 0:02:56.5]} 17... Nf4 {[%clk 0:02:25.1]} 18.
Bxf4 {[%clk 0:02:56.8]} 18... Rxf4 {[%clk 0:02:27]} 19. Rad1 {[%clk 0:02:57.1]}
19... Be6 {[%clk 0:02:26.3]} 20. e5 {[%clk 0:02:39.7]} 20... Raf8 {[%clk
0:02:18.7]} 21. Bd5 {[%clk 0:02:32.3]} 21... Kf7 {[%clk 0:02:13.8]} 22. Nb5
{[%clk 0:02:27.8]} 22... Bxe5 {[%clk 0:02:08.4]} 23. Bxe6+ {[%clk 0:01:50.8]}
23... Kxe6 {[%clk 0:02:10.3]} 24. Rfe1 {[%clk 0:01:40.8]} 24... Rg4+ {[%clk
0:01:46.4]} 25. Kf1 {[%clk 0:01:37.6]} 25... Rg5 {[%clk 0:01:44]} 26. Nc7+
{[%clk 0:01:33.6]} 26... Ke7 {[%clk 0:01:29.4]} 27. Nd5+ {[%clk 0:01:20.4]}
27... Kf7 {[%clk 0:01:30.5]} 28. Ne3 {[%clk 0:01:08.7]} 28... Kg7 {[%clk
0:01:14.8]} 29. Rd7+ {[%clk 0:01:08.2]} 29... Rf7 {[%clk 0:01:00.4]} 30. Red1
{[%clk 0:00:58.9]} 30... Bxh2 {[%clk 0:00:32.8]} 31. Rxf7+ {[%clk 0:00:58.1]}
31... Kxf7 {[%clk 0:00:34.7]} 32. Rd7+ {[%clk 0:00:59.2]} 32... Kg8 {[%clk
0:00:34.2]} 33. Rxb7 {[%clk 0:01:00]} 33... Rg1+ {[%clk 0:00:35.3]} 34. Ke2
{[%clk 0:01:01.1]} 34... h5 {[%clk 0:00:35.8]} 35. Rxa7 {[%clk 0:00:49.5]} 35...
h4 {[%clk 0:00:32.8]} 36. Ra4 {[%clk 0:00:49]} 36... g5 {[%clk 0:00:33.9]} 37.
Rg4 {[%clk 0:00:45.4]} 37... h3 {[%clk 0:00:25.4]} 38. Kf3 {[%clk 0:00:38.6]}
38... Rb1 {[%clk 0:00:24.5]} 39. Rxg5+ {[%clk 0:00:37.9]} 39... Kf7 {[%clk
0:00:26.1]} 40. Rh5 {[%clk 0:00:34.8]} 40... Rxb2 {[%clk 0:00:27.1]} 41. Rxh3
{[%clk 0:00:35.8]} 41... Be5 {[%clk 0:00:23.8]} 42. Nc4 {[%clk 0:00:27.5]} 1-0

[Event "*** Titled Tuesday Blitz"]
[Site "Chess.com"]
[Date "2018.06.05"]
[Round "5"]
[White "Karina_Oparina"]
[Black "nitpicker"]
[Result "1-0"]
[WhiteElo "2184"]
[BlackElo "2006"]
[TimeControl "180+2"]
[EndTime "14:13:48 PDT"]
[Termination "Karina_Oparina won on time"]

1. Nf3 {[%clk 0:02:58.9]} 1... g6 {[%clk 0:02:57.2]} 2. d4 {[%clk 0:02:58.8]}
2... Bg7 {[%clk 0:02:58.1]} 3. g3 {[%clk 0:02:59.4]} 3... d6 {[%clk 0:02:53.9]}
4. Bg2 {[%clk 0:02:59.6]} 4... Nd7 {[%clk 0:02:49.5]} 5. O-O {[%clk 0:02:58.9]}
5... c6 {[%clk 0:02:43.9]} 6. c4 {[%clk 0:02:57.1]} 6... Ngf6 {[%clk 0:02:40.1]}
7. b3 {[%clk 0:02:57.2]} 7... O-O {[%clk 0:02:40.1]} 8. Bb2 {[%clk 0:02:57.9]}
8... Qc7 {[%clk 0:02:41.2]} 9. Nbd2 {[%clk 0:02:54.8]} 9... Re8 {[%clk 0:02:42]}
10. Rc1 {[%clk 0:02:52.4]} 10... e5 {[%clk 0:02:41.7]} 11. e4 {[%clk 0:02:47.8]}
11... h6 {[%clk 0:02:34.6]} 12. d5 {[%clk 0:02:47.6]} 12... c5 {[%clk
0:02:29.6]} 13. Ne1 {[%clk 0:02:47.2]} 13... Nh7 {[%clk 0:02:20.5]} 14. Nd3
{[%clk 0:02:46.3]} 14... f5 {[%clk 0:02:16.3]} 15. f4 {[%clk 0:02:44.5]} 15...
Ndf6 {[%clk 0:02:05.4]} 16. fxe5 {[%clk 0:02:28.3]} 16... dxe5 {[%clk
0:02:02.4]} 17. Qe2 {[%clk 0:02:27.1]} 17... fxe4 {[%clk 0:01:27.1]} 18. Nxe4
{[%clk 0:02:26.7]} 18... Bg4 {[%clk 0:01:16]} 19. Bf3 {[%clk 0:02:18.8]} 19...
Bxf3 {[%clk 0:01:13.7]} 20. Qxf3 {[%clk 0:02:00.7]} 20... Nxe4 {[%clk
0:01:02.4]} 21. Qxe4 {[%clk 0:02:00.8]} 21... Qd6 {[%clk 0:01:00.8]} 22. Rce1
{[%clk 0:01:53.1]} 22... Ng5 {[%clk 0:01:01.7]} 23. Qe3 {[%clk 0:01:41.8]} 23...
e4 {[%clk 0:01:01.8]} 24. Bxg7 {[%clk 0:01:13.4]} 24... Kxg7 {[%clk 0:00:48.1]}
25. Nxc5 {[%clk 0:00:59.4]} 25... Nf3+ {[%clk 0:00:43.5]} 26. Rxf3 {[%clk
0:00:54.5]} 26... exf3 {[%clk 0:00:42.8]} 27. Ne6+ {[%clk 0:00:53.2]} 27... Kh7
{[%clk 0:00:43.6]} 28. Qxf3 {[%clk 0:00:46.4]} 28... Qe7 {[%clk 0:00:27.7]} 29.
h4 {[%clk 0:00:39.8]} 29... Kg8 {[%clk 0:00:24.9]} 30. Qe4 {[%clk 0:00:31.9]}
30... Qh7 {[%clk 0:00:18.3]} 31. d6 {[%clk 0:00:27.4]} 31... Rad8 {[%clk
0:00:16]} 32. c5 {[%clk 0:00:24]} 32... Qf7 {[%clk 0:00:14]} 33. Kg2 {[%clk
0:00:21.4]} 33... Rd7 {[%clk 0:00:15.1]} 34. b4 {[%clk 0:00:21.1]} 34... b6
{[%clk 0:00:15.5]} 35. a3 {[%clk 0:00:20]} 35... bxc5 {[%clk 0:00:15.9]} 36.
bxc5 {[%clk 0:00:20.9]} 36... Rb7 {[%clk 0:00:16.1]} 37. c6 {[%clk 0:00:20]}
37... Rb2+ {[%clk 0:00:16.7]} 38. Kh3 {[%clk 0:00:18.9]} 38... Kh7 {[%clk
0:00:04.9]} 39. d7 {[%clk 0:00:19.3]} 39... Qf2 {[%clk 0:00:05]} 40. Kg4 {[%clk
0:00:14.2]} 1-0

[Event "*** Titled Tuesday Blitz"]
[Site "Chess.com"]
[Date "2018.06.05"]
[Round "5"]
[White "EndgameGrinder"]
[Black "gpeloui"]
[Result "1-0"]
[WhiteElo "2518"]
[BlackElo "2326"]
[TimeControl "180+2"]
[EndTime "14:13:49 PDT"]
[Termination "EndgameGrinder won by resignation"]

1. e4 {[%clk 0:03:01.9]} 1... e6 {[%clk 0:02:59.8]} 2. d4 {[%clk 0:03:02.5]}
2... d5 {[%clk 0:03:01.2]} 3. Nd2 {[%clk 0:03:04.1]} 3... Be7 {[%clk 0:02:57.7]}
4. Bd3 {[%clk 0:03:01.4]} 4... c5 {[%clk 0:02:55]} 5. dxc5 {[%clk 0:03:01]} 5...
Nf6 {[%clk 0:02:53.8]} 6. Qe2 {[%clk 0:02:59.8]} 6... a5 {[%clk 0:02:55.2]} 7.
Ngf3 {[%clk 0:02:47.5]} 7... Na6 {[%clk 0:02:55]} 8. e5 {[%clk 0:02:48.9]} 8...
Nd7 {[%clk 0:02:54]} 9. c3 {[%clk 0:02:50.6]} 9... Naxc5 {[%clk 0:02:50.9]} 10.
Bc2 {[%clk 0:02:51.9]} 10... b6 {[%clk 0:02:52.2]} 11. Nd4 {[%clk 0:02:40.1]}
11... Ba6 {[%clk 0:02:49.5]} 12. Nb5 {[%clk 0:02:41.7]} 12... a4 {[%clk
0:02:50.4]} 13. Nf3 {[%clk 0:02:09.9]} 13... Qc8 {[%clk 0:02:12.1]} 14. Nfd4
{[%clk 0:02:05]} 14... Ne4 {[%clk 0:02:00.5]} 15. f3 {[%clk 0:01:51.2]} 15...
Bh4+ {[%clk 0:01:50.2]} 16. g3 {[%clk 0:01:50.3]} 16... Nxg3 {[%clk 0:01:44.5]}
17. hxg3 {[%clk 0:01:50.7]} 17... Bxg3+ {[%clk 0:01:44.4]} 18. Kf1 {[%clk
0:01:51.8]} 18... Bxe5 {[%clk 0:01:45.3]} 19. Bd3 {[%clk 0:01:44]} 19... Bxb5
{[%clk 0:01:23.3]} 20. Bxb5 {[%clk 0:01:35.8]} 20... Qc7 {[%clk 0:00:55.2]} 21.
f4 {[%clk 0:00:59.6]} 21... Bxd4 {[%clk 0:00:52.9]} 22. cxd4 {[%clk 0:01:01.5]}
22... Rc8 {[%clk 0:00:42.4]} 23. Bd2 {[%clk 0:00:56.2]} 23... Kf8 {[%clk
0:00:36.6]} 24. Rc1 {[%clk 0:00:47.3]} 24... Qd8 {[%clk 0:00:34.4]} 25. Rxc8
{[%clk 0:00:38.2]} 25... Qxc8 {[%clk 0:00:36.3]} 26. Bxd7 {[%clk 0:00:36.6]}
26... Qxd7 {[%clk 0:00:37.2]} 27. Kg2 {[%clk 0:00:37.9]} 27... b5 {[%clk
0:00:26.8]} 28. Bb4+ {[%clk 0:00:36.5]} 28... Kg8 {[%clk 0:00:26.9]} 29. Rc1
{[%clk 0:00:35.8]} 29... h5 {[%clk 0:00:27.4]} 30. Qc2 {[%clk 0:00:36.4]} 30...
h4 {[%clk 0:00:25.9]} 31. Qc8+ {[%clk 0:00:36.7]} 31... Qxc8 {[%clk 0:00:27.4]}
32. Rxc8+ {[%clk 0:00:38.4]} 32... Kh7 {[%clk 0:00:29.1]} 33. Rxh8+ {[%clk
0:00:39.9]} 33... Kxh8 {[%clk 0:00:30.7]} 34. Kh3 {[%clk 0:00:41.5]} 34... Kh7
{[%clk 0:00:31.9]} 35. Kxh4 {[%clk 0:00:35.6]} 35... Kg6 {[%clk 0:00:33.3]} 36.
Kg4 {[%clk 0:00:35.6]} 36... Kf6 {[%clk 0:00:34]} 37. Bc5 {[%clk 0:00:32.5]}
37... g6 {[%clk 0:00:34.7]} 38. Bd6 {[%clk 0:00:24.4]} 38... Kg7 {[%clk
0:00:35.5]} 39. Kf3 {[%clk 0:00:23.7]} 39... f6 {[%clk 0:00:36.8]} 40. Ke3
{[%clk 0:00:24.7]} 40... Kf7 {[%clk 0:00:37.5]} 41. Kd3 {[%clk 0:00:24.9]} 41...
Ke8 {[%clk 0:00:37.3]} 42. Kc3 {[%clk 0:00:24.9]} 42... Kd7 {[%clk 0:00:38]} 43.
Bf8 {[%clk 0:00:26]} 43... g5 {[%clk 0:00:34.1]} 44. fxg5 {[%clk 0:00:27.5]}
44... fxg5 {[%clk 0:00:36]} 45. Bh6 {[%clk 0:00:28.9]} 45... g4 {[%clk 0:00:37]}
46. Bf4 {[%clk 0:00:30.8]} 46... Kc6 {[%clk 0:00:37.9]} 47. Kb4 {[%clk
0:00:27.9]} 47... Kb6 {[%clk 0:00:39.3]} 48. Be5 {[%clk 0:00:29.1]} 48... Kc6
{[%clk 0:00:40.1]} 49. Ka5 {[%clk 0:00:30.4]} 1-0

[Event "*** Titled Tuesday Blitz"]
[Site "Chess.com"]
[Date "2018.06.05"]
[Round "5"]
[White "VNeimer"]
[Black "GGX0X0"]
[Result "1-0"]
[WhiteElo "2482"]
[BlackElo "2313"]
[TimeControl "180+2"]
[EndTime "14:13:50 PDT"]
[Termination "VNeimer won by checkmate"]

1. d4 {[%clk 0:03:01.9]} 1... d5 {[%clk 0:03:00.4]} 2. Nf3 {[%clk 0:03:00.2]}
2... Nf6 {[%clk 0:03:00.2]} 3. c4 {[%clk 0:02:58.7]} 3... c6 {[%clk 0:03:01.6]}
4. cxd5 {[%clk 0:02:58.1]} 4... cxd5 {[%clk 0:03:02.4]} 5. Nc3 {[%clk
0:02:58.3]} 5... Nc6 {[%clk 0:03:03.5]} 6. Bf4 {[%clk 0:02:58.1]} 6... Bf5
{[%clk 0:03:04.3]} 7. Qb3 {[%clk 0:02:56.7]} 7... Na5 {[%clk 0:03:04]} 8. Qa4+
{[%clk 0:02:56]} 8... Bd7 {[%clk 0:03:04.7]} 9. Qc2 {[%clk 0:02:48.5]} 9... e6
{[%clk 0:03:02.8]} 10. e3 {[%clk 0:02:47.8]} 10... Rc8 {[%clk 0:03:03.4]} 11.
Bd3 {[%clk 0:02:46.1]} 11... Be7 {[%clk 0:03:01.5]} 12. h3 {[%clk 0:02:43.2]}
12... O-O {[%clk 0:03:02.4]} 13. O-O {[%clk 0:02:40.9]} 13... Nc4 {[%clk
0:03:02.5]} 14. Ne5 {[%clk 0:02:37.4]} 14... b5 {[%clk 0:02:55.6]} 15. a3 {[%clk
0:02:31.1]} 15... a5 {[%clk 0:02:52.5]} 16. Nxd7 {[%clk 0:02:25]} 16... Qxd7
{[%clk 0:02:51.4]} 17. Qe2 {[%clk 0:02:25.3]} 17... Ne8 {[%clk 0:01:43.9]} 18.
Rfc1 {[%clk 0:02:16.7]} 18... b4 {[%clk 0:01:20.8]} 19. axb4 {[%clk 0:02:14.6]}
19... Bxb4 {[%clk 0:01:21.8]} 20. e4 {[%clk 0:02:02.4]} 20... Nf6 {[%clk
0:00:59.3]} 21. e5 {[%clk 0:01:55.3]} 21... Ne8 {[%clk 0:01:00.3]} 22. Qh5
{[%clk 0:01:43.6]} 22... g6 {[%clk 0:00:58.5]} 23. Qe2 {[%clk 0:01:40.9]} 23...
Qa7 {[%clk 0:00:53.8]} 24. Bh6 {[%clk 0:01:30]} 24... Qxd4 {[%clk 0:00:49]} 25.
Bxf8 {[%clk 0:01:20.7]} 25... Kxf8 {[%clk 0:00:42.3]} 26. Nb5 {[%clk 0:01:17.1]}
26... Qc5 {[%clk 0:00:35]} 27. Bxc4 {[%clk 0:01:10.6]} 27... dxc4 {[%clk
0:00:35.1]} 28. Nc3 {[%clk 0:01:08.2]} 28... Nc7 {[%clk 0:00:33.1]} 29. Ne4
{[%clk 0:01:02]} 29... Qxe5 {[%clk 0:00:33.4]} 30. Qxc4 {[%clk 0:01:01.4]} 30...
Kg7 {[%clk 0:00:21.2]} 31. Rc2 {[%clk 0:00:53]} 31... h5 {[%clk 0:00:16.5]} 32.
Nc5 {[%clk 0:00:46.6]} 32... Nd5 {[%clk 0:00:14.6]} 33. Nxe6+ {[%clk 0:00:45.1]}
33... Qxe6 {[%clk 0:00:15.6]} 34. Qxc8 {[%clk 0:00:45.8]} 34... Qe5 {[%clk
0:00:16.6]} 35. g3 {[%clk 0:00:23.7]} 35... h4 {[%clk 0:00:17.3]} 36. Qg4 {[%clk
0:00:21.5]} 36... hxg3 {[%clk 0:00:18.4]} 37. Qxg3 {[%clk 0:00:23.4]} 37... Qe6
{[%clk 0:00:18.6]} 38. Rd1 {[%clk 0:00:23]} 38... Bd6 {[%clk 0:00:19.4]} 39. Qf3
{[%clk 0:00:19.4]} 39... Nf4 {[%clk 0:00:17.9]} 40. Rxd6 {[%clk 0:00:17.1]}
40... Qxd6 {[%clk 0:00:18.5]} 41. Rc4 {[%clk 0:00:18.6]} 41... Ne6 {[%clk
0:00:17.7]} 42. Qc3+ {[%clk 0:00:19.2]} 42... Kh7 {[%clk 0:00:18.4]} 43. Rh4+
{[%clk 0:00:19.2]} 43... Kg8 {[%clk 0:00:11]} 44. Rh8# {[%clk 0:00:17.5]} 1-0

[Event "*** Titled Tuesday Blitz"]
[Site "Chess.com"]
[Date "2018.06.05"]
[Round "5"]
[White "Slovak_fighter2000"]
[Black "Fins0905"]
[Result "0-1"]
[WhiteElo "2399"]
[BlackElo "2599"]
[TimeControl "180+2"]
[EndTime "14:14:00 PDT"]
[Termination "Fins0905 won on time"]

1. d4 {[%clk 0:03:01.9]} 1... d5 {[%clk 0:02:59.6]} 2. Nf3 {[%clk 0:03:00.8]}
2... Nf6 {[%clk 0:03:00.6]} 3. Bf4 {[%clk 0:02:57.7]} 3... c5 {[%clk 0:03:01.3]}
4. e3 {[%clk 0:02:56.7]} 4... Nc6 {[%clk 0:03:02.3]} 5. Nbd2 {[%clk 0:02:56.3]}
5... cxd4 {[%clk 0:03:02.5]} 6. exd4 {[%clk 0:02:56.5]} 6... Bf5 {[%clk
0:03:02.3]} 7. c3 {[%clk 0:02:56.9]} 7... e6 {[%clk 0:03:02.5]} 8. Qb3 {[%clk
0:02:46.6]} 8... Bd6 {[%clk 0:03:00.9]} 9. Bg3 {[%clk 0:02:43.8]} 9... Rb8
{[%clk 0:02:57.5]} 10. Be2 {[%clk 0:02:35.5]} 10... h6 {[%clk 0:02:51.2]} 11.
O-O {[%clk 0:02:34.7]} 11... O-O {[%clk 0:02:51.4]} 12. a4 {[%clk 0:02:33.3]}
12... a6 {[%clk 0:02:46.1]} 13. Bxd6 {[%clk 0:02:28.9]} 13... Qxd6 {[%clk
0:02:46.4]} 14. Qa3 {[%clk 0:02:30.3]} 14... Qc7 {[%clk 0:02:39.9]} 15. a5
{[%clk 0:02:21.4]} 15... Rfc8 {[%clk 0:02:16.9]} 16. Nb3 {[%clk 0:02:16.8]}
16... Nd7 {[%clk 0:02:11.3]} 17. Nc5 {[%clk 0:02:10.9]} 17... Nxc5 {[%clk
0:02:08.6]} 18. Qxc5 {[%clk 0:02:12.8]} 18... Ne7 {[%clk 0:01:50.8]} 19. Qxc7
{[%clk 0:02:11]} 19... Rxc7 {[%clk 0:01:52.7]} 20. Ra3 {[%clk 0:01:56.1]} 20...
f6 {[%clk 0:01:32.4]} 21. Nd2 {[%clk 0:01:45.2]} 21... Kf7 {[%clk 0:01:24.8]}
22. Nb3 {[%clk 0:01:33.8]} 22... b6 {[%clk 0:01:01]} 23. axb6 {[%clk 0:01:09.9]}
23... Rxb6 {[%clk 0:01:02.9]} 24. Nc5 {[%clk 0:01:10.2]} 24... Rxb2 {[%clk
0:01:00.7]} 25. Bxa6 {[%clk 0:01:08]} 25... e5 {[%clk 0:00:53.7]} 26. Rd1 {[%clk
0:00:48.6]} 26... exd4 {[%clk 0:00:49.2]} 27. cxd4 {[%clk 0:00:49.6]} 27... Nc6
{[%clk 0:00:46.9]} 28. Nd3 {[%clk 0:00:38.7]} 28... Bxd3 {[%clk 0:00:44.1]} 29.
Bxd3 {[%clk 0:00:25.8]} 29... Nxd4 {[%clk 0:00:44.8]} 30. h3 {[%clk 0:00:23.8]}
30... Nc2 {[%clk 0:00:33.7]} 31. Ra5 {[%clk 0:00:18.8]} 31... Nb4 {[%clk
0:00:32.6]} 32. Bf1 {[%clk 0:00:07.9]} 32... Rcc2 {[%clk 0:00:30.8]} 33. f3
{[%clk 0:00:06.4]} 33... Rd2 {[%clk 0:00:23]} 34. Rc1 {[%clk 0:00:06.5]} 34...
Kg6 {[%clk 0:00:16.4]} 35. Ra7 {[%clk 0:00:06.9]} 35... Rbc2 {[%clk 0:00:13.6]}
36. Rb1 {[%clk 0:00:07.4]} 36... Rb2 {[%clk 0:00:10.9]} 37. Rc1 {[%clk
0:00:08.6]} 37... Nc2 {[%clk 0:00:12.1]} 38. Rd7 {[%clk 0:00:02.9]} 38... Ne3
{[%clk 0:00:12.6]} 39. Rcc7 {[%clk 0:00:03.6]} 39... Rb1 {[%clk 0:00:13]} 40.
Rxg7+ {[%clk 0:00:02.1]} 40... Kf5 {[%clk 0:00:14.5]} 41. Kh2 {[%clk 0:00:02.9]}
41... Nxf1+ {[%clk 0:00:15.1]} 42. Kg1 {[%clk 0:00:03.8]} 42... h5 {[%clk
0:00:13.4]} 43. Rcd7 {[%clk 0:00:03.3]} 43... h4 {[%clk 0:00:12.2]} 0-1

[Event "*** Titled Tuesday Blitz"]
[Site "Chess.com"]
[Date "2018.06.05"]
[Round "5"]
[White "Jooonaaas1996"]
[Black "Flawless2018"]
[Result "1/2-1/2"]
[WhiteElo "2282"]
[BlackElo "2486"]
[TimeControl "180+2"]
[EndTime "14:14:04 PDT"]
[Termination "Game drawn by agreement"]

1. e4 {[%clk 0:02:54.5]} 1... e5 {[%clk 0:02:58.4]} 2. Nf3 {[%clk 0:02:54.7]}
2... Nc6 {[%clk 0:02:59.5]} 3. Bb5 {[%clk 0:02:56.2]} 3... a6 {[%clk 0:03:00.4]}
4. Ba4 {[%clk 0:02:57.5]} 4... d6 {[%clk 0:03:02.3]} 5. c3 {[%clk 0:02:55]} 5...
f5 {[%clk 0:03:03.2]} 6. Bxc6+ {[%clk 0:02:28.7]} 6... bxc6 {[%clk 0:03:02.3]}
7. Qa4 {[%clk 0:02:26.9]} 7... Bd7 {[%clk 0:03:00.1]} 8. exf5 {[%clk 0:02:27.1]}
8... h5 {[%clk 0:02:56.5]} 9. d4 {[%clk 0:02:20.2]} 9... c5 {[%clk 0:02:54.6]}
10. Qc2 {[%clk 0:02:16.5]} 10... cxd4 {[%clk 0:02:50.7]} 11. cxd4 {[%clk
0:02:17.2]} 11... exd4 {[%clk 0:02:50.8]} 12. Nxd4 {[%clk 0:02:17]} 12... Nf6
{[%clk 0:02:50.5]} 13. O-O {[%clk 0:02:16.3]} 13... Be7 {[%clk 0:02:48.8]} 14.
Nc6 {[%clk 0:01:53.9]} 14... Bxc6 {[%clk 0:02:41.4]} 15. Qxc6+ {[%clk
0:01:55.8]} 15... Kf8 {[%clk 0:02:41.9]} 16. Nc3 {[%clk 0:01:42.9]} 16... Rb8
{[%clk 0:02:24.6]} 17. Qxa6 {[%clk 0:01:30.4]} 17... Qd7 {[%clk 0:02:22.1]} 18.
Qd3 {[%clk 0:01:29.9]} 18... h4 {[%clk 0:02:13.2]} 19. h3 {[%clk 0:01:29.4]}
19... Rh5 {[%clk 0:02:07.8]} 20. b3 {[%clk 0:01:26.8]} 20... d5 {[%clk 0:02:03]}
21. Be3 {[%clk 0:01:10.5]} 21... Qxf5 {[%clk 0:01:44.8]} 22. Qxf5 {[%clk
0:01:08.7]} 22... Rxf5 {[%clk 0:01:46.7]} 23. Rfd1 {[%clk 0:01:06.4]} 23... c5
{[%clk 0:01:44.8]} 24. Na4 {[%clk 0:01:00.7]} 24... d4 {[%clk 0:01:42.5]} 25.
Bc1 {[%clk 0:00:56.2]} 25... Ne4 {[%clk 0:01:40.6]} 26. Ba3 {[%clk 0:00:45.1]}
26... g5 {[%clk 0:01:14.7]} 27. f3 {[%clk 0:00:40.8]} 27... Ng3 {[%clk
0:01:12.9]} 28. Rd2 {[%clk 0:00:36.3]} 28... Rd8 {[%clk 0:01:05]} 29. Rc1 {[%clk
0:00:32.9]} 29... d3 {[%clk 0:01:03.2]} 30. Bxc5 {[%clk 0:00:32.1]} 30... Bxc5+
{[%clk 0:00:59.5]} 31. Rxc5 {[%clk 0:00:33.6]} 31... Rfd5 {[%clk 0:00:56.6]} 32.
Rxd5 {[%clk 0:00:32.8]} 32... Rxd5 {[%clk 0:00:58.5]} 33. Nc3 {[%clk 0:00:33.7]}
33... Rc5 {[%clk 0:00:56.5]} 34. Ne4 {[%clk 0:00:26.1]} 34... Nxe4 {[%clk
0:00:38.6]} 35. fxe4 {[%clk 0:00:26.4]} 35... Rc2 {[%clk 0:00:40.5]} 36. Rxd3
{[%clk 0:00:27.2]} 36... Rxa2 {[%clk 0:00:41.9]} 37. Rf3+ {[%clk 0:00:26.5]}
37... Kg7 {[%clk 0:00:40.2]} 38. e5 {[%clk 0:00:24.5]} 38... Re2 {[%clk
0:00:38.6]} 39. Rf5 {[%clk 0:00:24.9]} 39... Kg6 {[%clk 0:00:38.6]} 40. Rf6+
{[%clk 0:00:25.9]} 40... Kg7 {[%clk 0:00:39.2]} 41. Re6 {[%clk 0:00:27]} 41...
Re4 {[%clk 0:00:30.6]} 42. Kf2 {[%clk 0:00:25.9]} 42... Rf4+ {[%clk 0:00:29.3]}
43. Ke3 {[%clk 0:00:24.8]} 43... Rb4 {[%clk 0:00:31.2]} 44. Rd6 {[%clk
0:00:18.3]} 44... Rxb3+ {[%clk 0:00:29.6]} 45. Rd3 {[%clk 0:00:19.8]} 45... Rb4
{[%clk 0:00:28.8]} 46. Rd7+ {[%clk 0:00:19.4]} 46... Kg6 {[%clk 0:00:29.1]} 47.
Rd3 {[%clk 0:00:20.6]} 47... Kf5 {[%clk 0:00:28.3]} 48. Kf3 {[%clk 0:00:21.3]}
48... Kxe5 {[%clk 0:00:27.7]} 49. Ra3 {[%clk 0:00:22.7]} 49... Rb5 {[%clk
0:00:28.9]} 50. Re3+ {[%clk 0:00:23.1]} 50... Kf5 {[%clk 0:00:29.9]} 51. Ra3
{[%clk 0:00:24.6]} 51... Rc5 {[%clk 0:00:31]} 52. Kf2 {[%clk 0:00:25.3]} 1/2-1/2

[Event "*** Titled Tuesday Blitz"]
[Site "Chess.com"]
[Date "2018.06.05"]
[Round "5"]
[White "Martins-BR"]
[Black "rubhani"]
[Result "0-1"]
[WhiteElo "2312"]
[BlackElo "2437"]
[TimeControl "180+2"]
[EndTime "14:14:05 PDT"]
[Termination "rubhani won by resignation"]

1. e4 {[%clk 0:03:01.9]} 1... c6 {[%clk 0:02:59]} 2. d4 {[%clk 0:03:00.5]} 2...
d5 {[%clk 0:03:00.9]} 3. e5 {[%clk 0:03:01]} 3... Bf5 {[%clk 0:03:01.7]} 4. h4
{[%clk 0:03:01.4]} 4... h5 {[%clk 0:03:00.5]} 5. Bd3 {[%clk 0:03:01.4]} 5...
Bxd3 {[%clk 0:03:00.4]} 6. Qxd3 {[%clk 0:03:02.3]} 6... e6 {[%clk 0:03:01.3]} 7.
Bg5 {[%clk 0:03:01.1]} 7... Qa5+ {[%clk 0:03:00.9]} 8. Nd2 {[%clk 0:03:01.8]}
8... Qa6 {[%clk 0:03:01.9]} 9. c4 {[%clk 0:03:02.1]} 9... Nd7 {[%clk 0:02:58.7]}
10. Ngf3 {[%clk 0:02:56.4]} 10... Ne7 {[%clk 0:02:56.3]} 11. b3 {[%clk 0:02:50]}
11... Nf5 {[%clk 0:02:56.5]} 12. O-O {[%clk 0:02:48.5]} 12... Bb4 {[%clk
0:02:56.8]} 13. a3 {[%clk 0:02:30.2]} 13... Bxd2 {[%clk 0:02:57.1]} 14. Bxd2
{[%clk 0:02:20]} 14... O-O {[%clk 0:02:55.4]} 15. Qc2 {[%clk 0:02:11.8]} 15...
Rac8 {[%clk 0:02:21]} 16. c5 {[%clk 0:01:58.4]} 16... b6 {[%clk 0:02:19.5]} 17.
Bb4 {[%clk 0:01:47.8]} 17... Rfe8 {[%clk 0:02:14]} 18. Rfc1 {[%clk 0:01:39.4]}
18... Qb7 {[%clk 0:02:07.4]} 19. a4 {[%clk 0:01:30.3]} 19... Rb8 {[%clk
0:01:41.6]} 20. Rab1 {[%clk 0:01:25.7]} 20... Rec8 {[%clk 0:01:41]} 21. Ba3
{[%clk 0:01:18.2]} 21... b5 {[%clk 0:01:36.5]} 22. a5 {[%clk 0:00:56.9]} 22...
b4 {[%clk 0:01:37.3]} 23. Bb2 {[%clk 0:00:57.7]} 23... Qa6 {[%clk 0:01:38.1]}
24. Ra1 {[%clk 0:00:56.9]} 24... Rb5 {[%clk 0:00:59.5]} 25. Qd2 {[%clk 0:00:57]}
25... Rcb8 {[%clk 0:00:29.8]} 26. Qg5 {[%clk 0:00:53.7]} 26... g6 {[%clk
0:00:25.8]} 27. Nh2 {[%clk 0:00:47.3]} 27... Rxa5 {[%clk 0:00:23.9]} 28. g4
{[%clk 0:00:43.3]} 28... hxg4 {[%clk 0:00:23.4]} 29. Nxg4 {[%clk 0:00:43.7]}
29... Rxa1 {[%clk 0:00:22.2]} 30. Rxa1 {[%clk 0:00:40.9]} 30... Qe2 {[%clk
0:00:23.2]} 31. Rxa7 {[%clk 0:00:30.5]} 31... Qxb2 {[%clk 0:00:20.4]} 32. Rxd7
{[%clk 0:00:29.5]} 32... Qxd4 {[%clk 0:00:16.4]} 33. Nh6+ {[%clk 0:00:29.1]}
33... Nxh6 {[%clk 0:00:17.1]} 34. Qxh6 {[%clk 0:00:28.8]} 34... Qg4+ {[%clk
0:00:18.1]} 35. Kf1 {[%clk 0:00:29]} 35... Ra8 {[%clk 0:00:19.4]} 36. Qc1 {[%clk
0:00:20.8]} 36... Ra2 {[%clk 0:00:19.2]} 37. Qe1 {[%clk 0:00:15.6]} 37... Qh3+
{[%clk 0:00:16.2]} 38. Kg1 {[%clk 0:00:16.4]} 38... Qg4+ {[%clk 0:00:17.5]} 39.
Kf1 {[%clk 0:00:17.4]} 39... Qxh4 {[%clk 0:00:18.7]} 40. Kg1 {[%clk 0:00:17]}
40... Qg4+ {[%clk 0:00:19.8]} 41. Kf1 {[%clk 0:00:17.6]} 41... Qh5 {[%clk
0:00:20.6]} 42. Kg1 {[%clk 0:00:17.3]} 42... Re2 {[%clk 0:00:21.4]} 43. Qf1
{[%clk 0:00:14.9]} 43... Qxe5 {[%clk 0:00:22.2]} 44. Rd8+ {[%clk 0:00:14.2]}
44... Kg7 {[%clk 0:00:23.1]} 45. Qh3 {[%clk 0:00:14.5]} 45... Re1+ {[%clk
0:00:23.8]} 46. Kg2 {[%clk 0:00:14.8]} 46... Qg5+ {[%clk 0:00:24.8]} 47. Kf3
{[%clk 0:00:13.8]} 47... Qxd8 {[%clk 0:00:26.5]} 0-1